[Event "Titled Tuesday Blitz May 03 Early 2022"]
[White "Melikyan, Gnel"]
[Black "Lopez, Henry"]
[WhiteFideId "54109990"]
[BlackFideId "5203830"]
[WhiteElo "1772"]
[BlackElo "2177"]
[Result "0-1"]
[Round "10"]
[TimeControl "180+1"]
[Date "2022.05.03"]
[WhiteClock "0:01:11"]
[BlackClock "0:00:53"]

1. e4 {[%clk 0:03:00]}  e5 {[%clk 0:02:55]} 2. g3 {[%clk 0:03:00]}  g6 {[%clk 0:02:53]} 3. Bg2 {[%clk 0:03:00]}  Bg7 {[%clk 0:02:53]} 4. Nf3 {[%clk 0:03:00]}  c5 {[%clk 0:02:52]} 5. O-O {[%clk 0:02:55]}  Nc6 {[%clk 0:02:52]} 6. Nc3 {[%clk 0:02:52]}  Nge7 {[%clk 0:02:52]} 7. d3 {[%clk 0:02:52]}  O-O {[%clk 0:02:51]} 8. Be3 {[%clk 0:02:50]}  d6 {[%clk 0:02:51]} 9. Qd2 {[%clk 0:02:51]}  Rb8 {[%clk 0:02:47]} 10. Bh6 {[%clk 0:02:49]}  b5 {[%clk 0:02:46]} 11. Bxg7 {[%clk 0:02:48]}  Kxg7 {[%clk 0:02:46]} 12. h4 {[%clk 0:02:46]}  h6 {[%clk 0:02:45]} 13. Nd1 {[%clk 0:02:42]}  Be6 {[%clk 0:02:43]} 14. Ne3 {[%clk 0:02:33]}  f5 {[%clk 0:02:42]} 15. exf5 {[%clk 0:02:32]}  gxf5 {[%clk 0:02:41]} 16. Rfe1 {[%clk 0:02:28]}  Qd7 {[%clk 0:02:32]} 17. c3 {[%clk 0:02:26]}  d5 {[%clk 0:02:29]} 18. d4 {[%clk 0:02:10]}  e4 {[%clk 0:02:20]} 19. Ne5 {[%clk 0:02:09]}  Nxe5 {[%clk 0:02:18]} 20. dxe5 {[%clk 0:02:10]}  d4 {[%clk 0:02:04]} 21. Nc2 {[%clk 0:02:07]}  d3 {[%clk 0:01:59]} 22. Ne3 {[%clk 0:02:06]}  Ng6 {[%clk 0:01:56]} 23. f4 {[%clk 0:02:05]}  exf3 {[%clk 0:01:48]} 24. Bxf3 {[%clk 0:02:04]}  f4 {[%clk 0:01:48]} 25. Ng4 {[%clk 0:01:59]}  Bxg4 {[%clk 0:01:46]} 26. e6 {[%clk 0:01:54]}  Bxe6 {[%clk 0:01:46]} 27. h5 {[%clk 0:01:52]}  fxg3 {[%clk 0:01:39]} 28. Re3 {[%clk 0:01:50]}  Nf4 {[%clk 0:01:39]} 29. Rae1 {[%clk 0:01:49]}  c4 {[%clk 0:01:34]} 30. Re4 {[%clk 0:01:45]}  Qd6 {[%clk 0:01:30]} 31. Rd4 {[%clk 0:01:42]}  Qc5 {[%clk 0:01:28]} 32. Qe3 {[%clk 0:01:39]}  Rf7 {[%clk 0:01:16]} 33. Be4 {[%clk 0:01:25]}  Qg5 {[%clk 0:01:14]} 34. Bf3 {[%clk 0:01:22]}  Bh3 {[%clk 0:01:07]} 35. Rd6 {[%clk 0:01:18]}  g2 {[%clk 0:01:01]} 36. Qd4+ {[%clk 0:01:14]}  Kg8 {[%clk 0:00:58]} 37. Bd5 {[%clk 0:01:11]}  Nxd5 {[%clk 0:00:57]} 38. Rg6+ {[%clk 0:01:11]}  Qxg6 {[%clk 0:00:54]} 39. hxg6 {[%clk 0:01:11]}  Rf1+ {[%clk 0:00:53]} 40. Kh2 {[%clk 0:01:12]}  g1=Q+ {[%clk 0:00:53]} 41. Qxg1 {[%clk 0:01:11]}  Rxg1 {[%clk 0:00:53]} 0-1


[Site "https://www.chess.com"]

[Event "Titled Tuesday Blitz May 03 Early 2022"]
[White "Meshkovs, Nikita"]
[Black "Bacrot, Etienne"]
[WhiteFideId "11602740"]
[BlackFideId "605506"]
[WhiteElo "2506"]
[BlackElo "2673"]
[Result "1-0"]
[Round "10"]
[TimeControl "180+1"]
[Date "2022.05.03"]
[WhiteClock "0:00:05"]
[BlackClock "0:00:07"]

1. d4 {[%clk 0:02:57]}  Nf6 {[%clk 0:02:59]} 2. c4 {[%clk 0:02:57]}  e6 {[%clk 0:02:59]} 3. Nc3 {[%clk 0:02:57]}  d5 {[%clk 0:02:59]} 4. Nf3 {[%clk 0:02:46]}  Be7 {[%clk 0:02:58]} 5. Bf4 {[%clk 0:02:45]}  O-O {[%clk 0:02:58]} 6. e3 {[%clk 0:02:44]}  b6 {[%clk 0:02:57]} 7. cxd5 {[%clk 0:02:39]}  Nxd5 {[%clk 0:02:56]} 8. Nxd5 {[%clk 0:02:40]}  exd5 {[%clk 0:02:56]} 9. Bd3 {[%clk 0:02:36]}  c5 {[%clk 0:02:55]} 10. dxc5 {[%clk 0:02:35]}  bxc5 {[%clk 0:02:54]} 11. O-O {[%clk 0:02:36]}  Be6 {[%clk 0:02:45]} 12. Rc1 {[%clk 0:02:24]}  Nc6 {[%clk 0:02:37]} 13. Ne5 {[%clk 0:02:17]}  Nxe5 {[%clk 0:02:24]} 14. Bxe5 {[%clk 0:02:18]}  Rc8 {[%clk 0:02:12]} 15. Qa4 {[%clk 0:02:15]}  Bf6 {[%clk 0:02:03]} 16. Bxf6 {[%clk 0:02:08]}  Qxf6 {[%clk 0:02:03]} 17. b3 {[%clk 0:02:07]}  Rc7 {[%clk 0:01:47]} 18. Rc2 {[%clk 0:01:58]}  Rfc8 {[%clk 0:01:28]} 19. Ba6 {[%clk 0:01:58]}  Rd8 {[%clk 0:01:08]} 20. Rfc1 {[%clk 0:01:58]}  h6 {[%clk 0:00:42]} 21. Qa5 {[%clk 0:01:57]}  Rcd7 {[%clk 0:00:17]} 22. Rxc5 {[%clk 0:01:32]}  d4 {[%clk 0:00:17]} 23. exd4 {[%clk 0:01:32]}  Rxd4 {[%clk 0:00:17]} 24. Be2 {[%clk 0:01:28]}  Rd2 {[%clk 0:00:17]} 25. Bf3 {[%clk 0:01:27]}  Qd4 {[%clk 0:00:17]} 26. Rf1 {[%clk 0:01:18]}  Rxa2 {[%clk 0:00:17]} 27. Qxa2 {[%clk 0:01:01]}  Qxc5 {[%clk 0:00:17]} 28. h3 {[%clk 0:00:41]}  Rd3 {[%clk 0:00:08]} 29. b4 {[%clk 0:00:34]}  Qb6 {[%clk 0:00:04]} 30. Qa4 {[%clk 0:00:30]}  Rd8 {[%clk 0:00:02]} 31. b5 {[%clk 0:00:28]}  Rd4 {[%clk 0:00:01]} 32. Qa6 {[%clk 0:00:17]}  Qxa6 {[%clk 0:00:01]} 33. bxa6 {[%clk 0:00:18]}  Ra4 {[%clk 0:00:02]} 34. Be2 {[%clk 0:00:05]}  Bc4 {[%clk 0:00:02]} 35. Bxc4 {[%clk 0:00:04]}  Rxc4 {[%clk 0:00:03]} 36. Rd1 {[%clk 0:00:04]}  Rc6 {[%clk 0:00:03]} 37. Ra1 {[%clk 0:00:03]}  Kh7 {[%clk 0:00:03]} 38. Ra4 {[%clk 0:00:03]}  g5 {[%clk 0:00:04]} 39. Kh2 {[%clk 0:00:02]}  Kg6 {[%clk 0:00:04]} 40. g4 {[%clk 0:00:03]}  Kf6 {[%clk 0:00:04]} 41. f3 {[%clk 0:00:03]}  Ke5 {[%clk 0:00:04]} 42. Kg3 {[%clk 0:00:04]}  f6 {[%clk 0:00:05]} 43. h4 {[%clk 0:00:04]}  Ke6 {[%clk 0:00:04]} 44. h5 {[%clk 0:00:04]}  f5 {[%clk 0:00:04]} 45. Ra5 {[%clk 0:00:04]}  fxg4 {[%clk 0:00:04]} 46. Kxg4 {[%clk 0:00:05]}  Kf6 {[%clk 0:00:04]} 47. Ra4 {[%clk 0:00:05]}  Kf7 {[%clk 0:00:04]} 48. f4 {[%clk 0:00:05]}  gxf4 {[%clk 0:00:04]} 49. Kxf4 {[%clk 0:00:06]}  Ke7 {[%clk 0:00:04]} 50. Kf5 {[%clk 0:00:06]}  Kd7 {[%clk 0:00:05]} 51. Rg4 {[%clk 0:00:02]}  Kc7 {[%clk 0:00:05]} 52. Rg6 {[%clk 0:00:02]}  Rc5+ {[%clk 0:00:06]} 53. Kg4 {[%clk 0:00:02]}  Rc4+ {[%clk 0:00:06]} 54. Kg3 {[%clk 0:00:03]}  Rc3+ {[%clk 0:00:07]} 55. Kf4 {[%clk 0:00:03]}  Rc4+ {[%clk 0:00:07]} 56. Kf3 {[%clk 0:00:03]}  Rc3+ {[%clk 0:00:07]} 57. Ke4 {[%clk 0:00:04]}  Rc6 {[%clk 0:00:06]} 58. Kd5 {[%clk 0:00:04]}  Rb6 {[%clk 0:00:06]} 59. Kc5 {[%clk 0:00:04]}  Rb1 {[%clk 0:00:03]} 60. Rxh6 {[%clk 0:00:04]}  Rc1+ {[%clk 0:00:03]} 61. Kd5 {[%clk 0:00:05]}  Rd1+ {[%clk 0:00:04]} 62. Ke5 {[%clk 0:00:05]}  Re1+ {[%clk 0:00:04]} 63. Kd4 {[%clk 0:00:06]}  Rh1 {[%clk 0:00:04]} 64. Ke4 {[%clk 0:00:05]}  Rh4+ {[%clk 0:00:03]} 65. Kf5 {[%clk 0:00:06]}  Rh1 {[%clk 0:00:03]} 66. Kg5 {[%clk 0:00:04]}  Rg1+ {[%clk 0:00:03]} 67. Kf5 {[%clk 0:00:05]}  Rh1 {[%clk 0:00:03]} 68. Kg6 {[%clk 0:00:03]}  Rg1+ {[%clk 0:00:04]} 69. Kf7 {[%clk 0:00:03]}  Rh1 {[%clk 0:00:04]} 70. Rh8 {[%clk 0:00:03]}  Kb6 {[%clk 0:00:03]} 71. h6 {[%clk 0:00:03]}  Kxa6 {[%clk 0:00:04]} 72. Kg6 {[%clk 0:00:04]}  Kb5 {[%clk 0:00:03]} 73. Rb8+ {[%clk 0:00:03]}  Ka4 {[%clk 0:00:03]} 74. h7 {[%clk 0:00:04]}  a5 {[%clk 0:00:03]} 75. h8=Q {[%clk 0:00:03]}  Rxh8 {[%clk 0:00:02]} 76. Rxh8 {[%clk 0:00:04]}  Kb3 {[%clk 0:00:03]} 77. Rb8+ {[%clk 0:00:04]}  Kc3 {[%clk 0:00:03]} 78. Ra8 {[%clk 0:00:05]}  Kb4 {[%clk 0:00:03]} 79. Kf5 {[%clk 0:00:05]}  a4 {[%clk 0:00:04]} 80. Ke4 {[%clk 0:00:06]}  a3 {[%clk 0:00:04]} 81. Kd3 {[%clk 0:00:06]}  Kb3 {[%clk 0:00:05]} 82. Rb8+ {[%clk 0:00:06]}  Ka2 {[%clk 0:00:06]} 83. Kc2 {[%clk 0:00:06]}  Ka1 {[%clk 0:00:06]} 84. Rh8 {[%clk 0:00:05]}  a2 {[%clk 0:00:07]} 85. Rh1# {[%clk 0:00:05]} 1-0


[Site "https://www.chess.com"]

[Event "Titled Tuesday Blitz May 03 Early 2022"]
[White "Nozdrachev, Leonid"]
[Black "Bifulco, Michel"]
[WhiteFideId "24113433"]
[BlackFideId "828580"]
[WhiteElo "2242"]
[BlackElo "2165"]
[Result "0-1"]
[Round "10"]
[TimeControl "180+1"]
[Date "2022.05.03"]
[WhiteClock "0:00:08"]
[BlackClock "0:00:08"]

1. e4 {[%clk 0:03:00]}  e5 {[%clk 0:02:59]} 2. Nf3 {[%clk 0:02:59]}  Nc6 {[%clk 0:03:00]} 3. Bc4 {[%clk 0:02:57]}  Nf6 {[%clk 0:03:00]} 4. d3 {[%clk 0:02:56]}  h6 {[%clk 0:03:00]} 5. O-O {[%clk 0:02:54]}  d6 {[%clk 0:03:01]} 6. Re1 {[%clk 0:02:44]}  g5 {[%clk 0:03:00]} 7. c3 {[%clk 0:02:34]}  Bg7 {[%clk 0:03:00]} 8. d4 {[%clk 0:02:34]}  g4 {[%clk 0:02:55]} 9. Nh4 {[%clk 0:02:33]}  Nxe4 {[%clk 0:02:52]} 10. Ng6 {[%clk 0:02:22]}  fxg6 {[%clk 0:02:47]} 11. d5 {[%clk 0:02:21]}  Na5 {[%clk 0:02:29]} 12. Bd3 {[%clk 0:02:14]}  Nf6 {[%clk 0:02:19]} 13. b4 {[%clk 0:02:09]}  Bf5 {[%clk 0:02:15]} 14. bxa5 {[%clk 0:01:57]}  O-O {[%clk 0:02:11]} 15. c4 {[%clk 0:01:53]}  e4 {[%clk 0:02:08]} 16. Bf1 {[%clk 0:01:34]}  Kh7 {[%clk 0:02:07]} 17. Be3 {[%clk 0:01:26]}  Nxd5 {[%clk 0:02:03]} 18. Qxd5 {[%clk 0:01:17]}  Bxa1 {[%clk 0:01:58]} 19. Qxb7 {[%clk 0:01:17]}  Be5 {[%clk 0:01:39]} 20. Nd2 {[%clk 0:01:10]}  Rb8 {[%clk 0:01:25]} 21. Qxa7 {[%clk 0:01:07]}  Rb2 {[%clk 0:01:24]} 22. a3 {[%clk 0:01:02]}  Bc3 {[%clk 0:00:55]} 23. Rd1 {[%clk 0:00:53]}  g3 {[%clk 0:00:48]} 24. hxg3 {[%clk 0:00:52]}  Bg4 {[%clk 0:00:48]} 25. Bd4 {[%clk 0:00:45]}  Rxd2 {[%clk 0:00:41]} 26. Rxd2 {[%clk 0:00:32]}  Bxd2 {[%clk 0:00:42]} 27. a6 {[%clk 0:00:30]}  e3 {[%clk 0:00:39]} 28. Bxe3 {[%clk 0:00:27]}  Bxe3 {[%clk 0:00:39]} 29. Qxe3 {[%clk 0:00:28]}  Qe8 {[%clk 0:00:34]} 30. Qd4 {[%clk 0:00:25]}  Bd7 {[%clk 0:00:33]} 31. a7 {[%clk 0:00:25]}  Bc6 {[%clk 0:00:33]} 32. c5 {[%clk 0:00:23]}  Qe4 {[%clk 0:00:32]} 33. Qb2 {[%clk 0:00:13]}  Qe5 {[%clk 0:00:25]} 34. Qb8 {[%clk 0:00:12]}  Qe7 {[%clk 0:00:16]} 35. cxd6 {[%clk 0:00:12]}  cxd6 {[%clk 0:00:15]} 36. a4 {[%clk 0:00:11]}  Kg7 {[%clk 0:00:15]} 37. a5 {[%clk 0:00:11]}  Qe8 {[%clk 0:00:11]} 38. Qxd6 {[%clk 0:00:09]}  Qd7 {[%clk 0:00:09]} 39. Qe5+ {[%clk 0:00:08]}  Kh7 {[%clk 0:00:09]} 40. Qb8 {[%clk 0:00:08]}  Rd8 {[%clk 0:00:08]} 41. Qb6 {[%clk 0:00:07]}  Ba8 {[%clk 0:00:07]} 42. Qb8 {[%clk 0:00:07]}  Qd5 {[%clk 0:00:06]} 43. Qc7+ {[%clk 0:00:05]}  Qd7 {[%clk 0:00:06]} 44. Qb8 {[%clk 0:00:05]}  Qe8 {[%clk 0:00:06]} 45. Qb6 {[%clk 0:00:05]}  Rc8 {[%clk 0:00:05]} 46. g4 {[%clk 0:00:05]}  Qf8 {[%clk 0:00:05]} 47. Qd4 {[%clk 0:00:04]}  Rd8 {[%clk 0:00:05]} 48. Qb6 {[%clk 0:00:04]}  Re8 {[%clk 0:00:05]} 49. Qc7+ {[%clk 0:00:04]}  Qg7 {[%clk 0:00:05]} 50. Qb6 {[%clk 0:00:04]}  Qe7 {[%clk 0:00:05]} 51. Qb8 {[%clk 0:00:04]}  Rf8 {[%clk 0:00:05]} 52. Qb6 {[%clk 0:00:04]}  Qf7 {[%clk 0:00:05]} 53. Qb8 {[%clk 0:00:03]}  Qxf2+ {[%clk 0:00:05]} 54. Kh2 {[%clk 0:00:03]}  Qf4+ {[%clk 0:00:04]} 55. Qxf4 {[%clk 0:00:03]}  Rxf4 {[%clk 0:00:05]} 56. Be2 {[%clk 0:00:02]}  Rf7 {[%clk 0:00:05]} 57. a6 {[%clk 0:00:01]}  Rxa7 {[%clk 0:00:05]} 58. Bb5 {[%clk 0:00:01]}  Bd5 {[%clk 0:00:05]} 59. Kg3 {[%clk 0:00:01]}  Be6 {[%clk 0:00:06]} 60. Kf4 {[%clk 0:00:01]}  Bc8 {[%clk 0:00:06]} 61. Be2 {[%clk 0:00:01]}  Bxa6 {[%clk 0:00:06]} 62. Bf3 {[%clk 0:00:02]}  Bb7 {[%clk 0:00:06]} 63. Be2 {[%clk 0:00:02]}  Ra2 {[%clk 0:00:06]} 64. Bd3 {[%clk 0:00:01]}  Rxg2 {[%clk 0:00:06]} 65. Ke3 {[%clk 0:00:01]}  Rxg4 {[%clk 0:00:05]} 66. Bb5 {[%clk 0:00:02]}  Rg5 {[%clk 0:00:05]} 67. Bd7 {[%clk 0:00:03]}  Rd5 {[%clk 0:00:05]} 68. Kf4 {[%clk 0:00:04]}  Rxd7 {[%clk 0:00:05]} 69. Ke5 {[%clk 0:00:04]}  Rf7 {[%clk 0:00:06]} 70. Ke6 {[%clk 0:00:04]}  h5 {[%clk 0:00:05]} 71. Kd6 {[%clk 0:00:05]}  h4 {[%clk 0:00:06]} 72. Ke6 {[%clk 0:00:05]}  Rf8 {[%clk 0:00:06]} 73. Ke7 {[%clk 0:00:05]}  Rf1 {[%clk 0:00:06]} 74. Ke6 {[%clk 0:00:06]}  h3 {[%clk 0:00:07]} 75. Kd6 {[%clk 0:00:06]}  h2 {[%clk 0:00:07]} 76. Kc7 {[%clk 0:00:07]}  h1=Q {[%clk 0:00:08]} 77. Kb6 {[%clk 0:00:07]}  Qc6+ {[%clk 0:00:08]} 78. Ka7 {[%clk 0:00:08]}  Ra1+ {[%clk 0:00:08]} 79. Kb8 {[%clk 0:00:08]}  Ra8# {[%clk 0:00:08]} 0-1


[Site "https://www.chess.com"]

[Event "Titled Tuesday Blitz May 03 Early 2022"]
[White "Oparin, Grigoriy"]
[Black "Xu, Yi"]
[WhiteFideId "24125890"]
[BlackFideId "8605564"]
[WhiteElo "2665"]
[BlackElo "2471"]
[Result "1-0"]
[Round "10"]
[TimeControl "180+1"]
[Date "2022.05.03"]
[WhiteClock "0:00:29"]
[BlackClock "0:00:01"]

1. d4 {[%clk 0:03:00]}  Nf6 {[%clk 0:02:59]} 2. c4 {[%clk 0:03:01]}  e6 {[%clk 0:02:59]} 3. Nf3 {[%clk 0:03:02]}  d5 {[%clk 0:03:00]} 4. g3 {[%clk 0:03:03]}  Be7 {[%clk 0:03:00]} 5. Bg2 {[%clk 0:03:04]}  O-O {[%clk 0:03:00]} 6. Qc2 {[%clk 0:02:57]}  c5 {[%clk 0:02:54]} 7. dxc5 {[%clk 0:02:58]}  Qa5+ {[%clk 0:02:46]} 8. Nc3 {[%clk 0:02:58]}  dxc4 {[%clk 0:02:45]} 9. O-O {[%clk 0:02:59]}  Nc6 {[%clk 0:02:39]} 10. Bg5 {[%clk 0:02:59]}  Qxc5 {[%clk 0:02:39]} 11. Bxf6 {[%clk 0:02:59]}  gxf6 {[%clk 0:02:36]} 12. Rfd1 {[%clk 0:02:59]}  f5 {[%clk 0:02:26]} 13. e4 {[%clk 0:02:56]}  Bf6 {[%clk 0:02:20]} 14. exf5 {[%clk 0:02:54]}  Qxf5 {[%clk 0:02:20]} 15. Qe2 {[%clk 0:02:55]}  Qg6 {[%clk 0:02:05]} 16. Qxc4 {[%clk 0:02:43]}  e5 {[%clk 0:02:03]} 17. Nd5 {[%clk 0:02:28]}  Be6 {[%clk 0:01:58]} 18. Qb5 {[%clk 0:02:29]}  Rab8 {[%clk 0:01:54]} 19. h4 {[%clk 0:01:51]}  Bxd5 {[%clk 0:01:51]} 20. Rxd5 {[%clk 0:01:49]}  Rfd8 {[%clk 0:01:41]} 21. Rxd8+ {[%clk 0:01:42]}  Rxd8 {[%clk 0:01:33]} 22. Qxb7 {[%clk 0:01:42]}  e4 {[%clk 0:01:33]} 23. Qxc6 {[%clk 0:01:29]}  exf3 {[%clk 0:01:32]} 24. Qxf3 {[%clk 0:01:30]}  Bxb2 {[%clk 0:01:31]} 25. Re1 {[%clk 0:01:29]}  Bd4 {[%clk 0:01:17]} 26. Re4 {[%clk 0:01:24]}  h5 {[%clk 0:01:17]} 27. Bf1 {[%clk 0:01:23]}  Bb6 {[%clk 0:01:11]} 28. Bd3 {[%clk 0:01:17]}  Kg7 {[%clk 0:00:56]} 29. Rd4 {[%clk 0:01:10]}  Qf6 {[%clk 0:00:48]} 30. Rf4 {[%clk 0:01:11]}  Qe6 {[%clk 0:00:40]} 31. Kg2 {[%clk 0:01:03]}  Rd4 {[%clk 0:00:32]} 32. Rxd4 {[%clk 0:00:52]}  Bxd4 {[%clk 0:00:32]} 33. Qxh5 {[%clk 0:00:52]}  Kf8 {[%clk 0:00:27]} 34. Qe2 {[%clk 0:00:36]}  Qxe2 {[%clk 0:00:19]} 35. Bxe2 {[%clk 0:00:37]}  Kg7 {[%clk 0:00:15]} 36. Bd3 {[%clk 0:00:37]}  Bc3 {[%clk 0:00:15]} 37. f4 {[%clk 0:00:37]}  Be1 {[%clk 0:00:14]} 38. Kf3 {[%clk 0:00:34]}  a5 {[%clk 0:00:12]} 39. Kg4 {[%clk 0:00:25]}  Kh6 {[%clk 0:00:11]} 40. Kh3 {[%clk 0:00:23]}  f6 {[%clk 0:00:10]} 41. g4 {[%clk 0:00:23]}  Bf2 {[%clk 0:00:10]} 42. g5+ {[%clk 0:00:23]}  fxg5 {[%clk 0:00:09]} 43. fxg5+ {[%clk 0:00:23]}  Kh5 {[%clk 0:00:06]} 44. Be2+ {[%clk 0:00:23]}  Kg6 {[%clk 0:00:06]} 45. Kg4 {[%clk 0:00:24]}  Be3 {[%clk 0:00:05]} 46. h5+ {[%clk 0:00:25]}  Kg7 {[%clk 0:00:04]} 47. Bd3 {[%clk 0:00:26]}  Bd2 {[%clk 0:00:03]} 48. h6+ {[%clk 0:00:26]}  Kf7 {[%clk 0:00:01]} 49. Kh5 {[%clk 0:00:27]}  Kg8 {[%clk 0:00:01]} 50. g6 {[%clk 0:00:27]}  Be3 {[%clk 0:00:01]} 51. Bc4+ {[%clk 0:00:27]}  Kh8 {[%clk 0:00:01]} 52. g7+ {[%clk 0:00:28]}  Kh7 {[%clk 0:00:01]} 53. g8=Q# {[%clk 0:00:29]} 1-0


[Site "https://www.chess.com"]

[Event "Titled Tuesday Blitz May 03 Early 2022"]
[White "Piesik, Piotr"]
[Black "Cherniaiev, Tykhon"]
[WhiteFideId "1136194"]
[BlackFideId "14182360"]
[WhiteElo "2190"]
[BlackElo "2289"]
[Result "1-0"]
[Round "10"]
[TimeControl "180+1"]
[Date "2022.05.03"]
[WhiteClock "0:00:14"]
[BlackClock "0:00:16"]

1. Nf3 {[%clk 0:03:00]}  Nf6 {[%clk 0:02:59]} 2. g3 {[%clk 0:02:58]}  d5 {[%clk 0:02:58]} 3. Bg2 {[%clk 0:02:58]}  c6 {[%clk 0:02:58]} 4. O-O {[%clk 0:02:58]}  e6 {[%clk 0:02:54]} 5. d3 {[%clk 0:02:58]}  Be7 {[%clk 0:02:53]} 6. Nbd2 {[%clk 0:02:59]}  O-O {[%clk 0:02:54]} 7. e4 {[%clk 0:02:59]}  Nbd7 {[%clk 0:02:54]} 8. Qe2 {[%clk 0:02:59]}  dxe4 {[%clk 0:02:54]} 9. dxe4 {[%clk 0:02:59]}  e5 {[%clk 0:02:54]} 10. a4 {[%clk 0:03:00]}  Qc7 {[%clk 0:02:53]} 11. b3 {[%clk 0:03:00]}  Re8 {[%clk 0:02:51]} 12. Bb2 {[%clk 0:03:00]}  Bf8 {[%clk 0:02:49]} 13. Nc4 {[%clk 0:03:00]}  b5 {[%clk 0:02:43]} 14. axb5 {[%clk 0:03:00]}  cxb5 {[%clk 0:02:44]} 15. Ne3 {[%clk 0:03:00]}  Bb7 {[%clk 0:02:40]} 16. Qxb5 {[%clk 0:02:59]}  Bxe4 {[%clk 0:02:37]} 17. Qa5 {[%clk 0:02:42]}  Qb7 {[%clk 0:02:33]} 18. Nh4 {[%clk 0:02:27]}  Bxg2 {[%clk 0:02:21]} 19. Nhxg2 {[%clk 0:02:28]}  Bb4 {[%clk 0:02:16]} 20. Qa6 {[%clk 0:02:27]}  Qf3 {[%clk 0:02:11]} 21. Nh4 {[%clk 0:02:24]}  Qh5 {[%clk 0:02:07]} 22. Kg2 {[%clk 0:02:14]}  Bc5 {[%clk 0:01:58]} 23. Nef5 {[%clk 0:01:23]}  e4 {[%clk 0:01:24]} 24. Bxf6 {[%clk 0:01:13]}  Nxf6 {[%clk 0:01:21]} 25. Rfe1 {[%clk 0:00:59]}  e3 {[%clk 0:00:49]} 26. fxe3 {[%clk 0:00:51]}  Bb6 {[%clk 0:00:37]} 27. Qe2 {[%clk 0:00:48]}  Qxe2+ {[%clk 0:00:22]} 28. Rxe2 {[%clk 0:00:49]}  g6 {[%clk 0:00:19]} 29. Nd6 {[%clk 0:00:48]}  Rxe3 {[%clk 0:00:18]} 30. Rxe3 {[%clk 0:00:48]}  Bxe3 {[%clk 0:00:19]} 31. Nf3 {[%clk 0:00:46]}  Bc5 {[%clk 0:00:16]} 32. Nc4 {[%clk 0:00:45]}  Re8 {[%clk 0:00:16]} 33. Re1 {[%clk 0:00:43]}  Rd8 {[%clk 0:00:15]} 34. Re5 {[%clk 0:00:40]}  Bf8 {[%clk 0:00:15]} 35. Ra5 {[%clk 0:00:40]}  Rd7 {[%clk 0:00:15]} 36. Nfe5 {[%clk 0:00:38]}  Rc7 {[%clk 0:00:15]} 37. Ra6 {[%clk 0:00:37]}  Nd5 {[%clk 0:00:13]} 38. Nd3 {[%clk 0:00:30]}  f5 {[%clk 0:00:11]} 39. Kf3 {[%clk 0:00:27]}  Rd7 {[%clk 0:00:07]} 40. Nce5 {[%clk 0:00:26]}  Rc7 {[%clk 0:00:07]} 41. c4 {[%clk 0:00:26]}  Nb6 {[%clk 0:00:06]} 42. Ra5 {[%clk 0:00:21]}  Bd6 {[%clk 0:00:02]} 43. Rb5 {[%clk 0:00:18]}  Kf8 {[%clk 0:00:02]} 44. Ke3 {[%clk 0:00:17]}  Nd7 {[%clk 0:00:01]} 45. Nxd7+ {[%clk 0:00:17]}  Rxd7 {[%clk 0:00:02]} 46. c5 {[%clk 0:00:16]}  Bc7 {[%clk 0:00:03]} 47. Ke2 {[%clk 0:00:14]}  Ke7 {[%clk 0:00:03]} 48. Rb7 {[%clk 0:00:14]}  Bd8 {[%clk 0:00:02]} 49. Rxd7+ {[%clk 0:00:12]}  Kxd7 {[%clk 0:00:03]} 50. Ne5+ {[%clk 0:00:12]}  Ke6 {[%clk 0:00:03]} 51. Nc6 {[%clk 0:00:10]}  Bc7 {[%clk 0:00:03]} 52. Nxa7 {[%clk 0:00:10]}  Kd5 {[%clk 0:00:04]} 53. b4 {[%clk 0:00:11]}  Kc4 {[%clk 0:00:03]} 54. Nc6 {[%clk 0:00:11]}  Kb5 {[%clk 0:00:03]} 55. Ne7 {[%clk 0:00:10]}  Kxb4 {[%clk 0:00:04]} 56. Nd5+ {[%clk 0:00:10]}  Kxc5 {[%clk 0:00:04]} 57. Nxc7 {[%clk 0:00:11]}  Kd4 {[%clk 0:00:05]} 58. Kf3 {[%clk 0:00:11]}  Ke5 {[%clk 0:00:05]} 59. Nb5 {[%clk 0:00:11]}  g5 {[%clk 0:00:06]} 60. Nc3 {[%clk 0:00:10]}  h5 {[%clk 0:00:06]} 61. h4 {[%clk 0:00:08]}  f4 {[%clk 0:00:02]} 62. gxf4+ {[%clk 0:00:07]}  gxf4 {[%clk 0:00:03]} 63. Ne2 {[%clk 0:00:07]}  Kf5 {[%clk 0:00:04]} 64. Nxf4 {[%clk 0:00:08]}  Kf6 {[%clk 0:00:05]} 65. Nxh5+ {[%clk 0:00:08]}  Kg6 {[%clk 0:00:05]} 66. Kg4 {[%clk 0:00:08]}  Kh6 {[%clk 0:00:06]} 67. Ng3 {[%clk 0:00:09]}  Kg6 {[%clk 0:00:07]} 68. h5+ {[%clk 0:00:09]}  Kh6 {[%clk 0:00:08]} 69. Nf5+ {[%clk 0:00:10]}  Kh7 {[%clk 0:00:08]} 70. Kg5 {[%clk 0:00:11]}  Kh8 {[%clk 0:00:09]} 71. h6 {[%clk 0:00:12]}  Kg8 {[%clk 0:00:10]} 72. Kg6 {[%clk 0:00:12]}  Kh8 {[%clk 0:00:11]} 73. Nd6 {[%clk 0:00:11]}  Kg8 {[%clk 0:00:11]} 74. h7+ {[%clk 0:00:12]}  Kf8 {[%clk 0:00:12]} 75. Nf7 {[%clk 0:00:12]}  Ke7 {[%clk 0:00:13]} 76. h8=Q {[%clk 0:00:12]}  Ke6 {[%clk 0:00:13]} 77. Qf6+ {[%clk 0:00:13]}  Kd7 {[%clk 0:00:14]} 78. Qd6+ {[%clk 0:00:12]}  Kc8 {[%clk 0:00:14]} 79. Qe7 {[%clk 0:00:12]}  Kb8 {[%clk 0:00:15]} 80. Nd6 {[%clk 0:00:13]}  Ka8 {[%clk 0:00:16]} 81. Qb7# {[%clk 0:00:14]} 1-0


[Site "https://www.chess.com"]

[Event "Titled Tuesday Blitz May 03 Early 2022"]
[White "Popadic, Dragan"]
[Black "Khabinets, Ivan"]
[WhiteFideId "913650"]
[BlackFideId "14115980"]
[WhiteElo "2203"]
[BlackElo "2114"]
[Result "0-1"]
[Round "10"]
[TimeControl "180+1"]
[Date "2022.05.03"]
[WhiteClock "0:00:06"]
[BlackClock "0:01:35"]

1. e4 {[%clk 0:03:00]}  c5 {[%clk 0:03:00]} 2. Nc3 {[%clk 0:03:00]}  Nc6 {[%clk 0:02:59]} 3. f4 {[%clk 0:03:00]}  e6 {[%clk 0:02:58]} 4. Nf3 {[%clk 0:03:00]}  Nf6 {[%clk 0:02:57]} 5. Bb5 {[%clk 0:02:59]}  Qc7 {[%clk 0:02:56]} 6. Bxc6 {[%clk 0:02:58]}  Qxc6 {[%clk 0:02:56]} 7. d3 {[%clk 0:02:58]}  d5 {[%clk 0:02:56]} 8. Qe2 {[%clk 0:02:52]}  Be7 {[%clk 0:02:55]} 9. Ne5 {[%clk 0:02:47]}  Qc7 {[%clk 0:02:54]} 10. O-O {[%clk 0:02:38]}  O-O {[%clk 0:02:52]} 11. Bd2 {[%clk 0:02:36]}  b6 {[%clk 0:02:49]} 12. exd5 {[%clk 0:02:34]}  Nxd5 {[%clk 0:02:46]} 13. Ne4 {[%clk 0:02:18]}  Bb7 {[%clk 0:02:42]} 14. Qh5 {[%clk 0:02:12]}  Nf6 {[%clk 0:02:36]} 15. Nxf6+ {[%clk 0:02:11]}  Bxf6 {[%clk 0:02:32]} 16. Bc3 {[%clk 0:02:09]}  g6 {[%clk 0:02:25]} 17. Qh3 {[%clk 0:01:53]}  h5 {[%clk 0:02:18]} 18. Qg3 {[%clk 0:01:43]}  Kg7 {[%clk 0:02:15]} 19. Rae1 {[%clk 0:01:35]}  b5 {[%clk 0:02:12]} 20. b3 {[%clk 0:01:33]}  a5 {[%clk 0:02:10]} 21. Ba1 {[%clk 0:01:30]}  a4 {[%clk 0:02:03]} 22. Kh1 {[%clk 0:01:25]}  axb3 {[%clk 0:02:02]} 23. axb3 {[%clk 0:01:25]}  Ra2 {[%clk 0:02:02]} 24. Qf2 {[%clk 0:01:01]}  Rfa8 {[%clk 0:01:58]} 25. Rc1 {[%clk 0:00:51]}  Qa5 {[%clk 0:01:56]} 26. Qg1 {[%clk 0:00:46]}  h4 {[%clk 0:01:53]} 27. h3 {[%clk 0:00:40]}  Qd2 {[%clk 0:01:50]} 28. Nf3 {[%clk 0:00:21]}  Bxf3 {[%clk 0:01:47]} 29. Bxf6+ {[%clk 0:00:19]}  Kxf6 {[%clk 0:01:47]} 30. Rxf3 {[%clk 0:00:16]}  Rxc2 {[%clk 0:01:44]} 31. Rxc2 {[%clk 0:00:13]}  Qxc2 {[%clk 0:01:45]} 32. Qe1 {[%clk 0:00:08]}  Ra2 {[%clk 0:01:37]} 33. Qe5+ {[%clk 0:00:07]}  Ke7 {[%clk 0:01:35]} 34. Qc7+ {[%clk 0:00:06]}  Kf8 {[%clk 0:01:35]} 0-1


[Site "https://www.chess.com"]